[Event "Titled Tuesday Blitz September 27 Early 2022"]
[White "Mendez Fortes, Eduardo Jesus"]
[Black "Antonova, Nadezhda"]
[WhiteFideId "3502376"]
[BlackFideId "14700182"]
[WhiteElo "2307"]
[BlackElo "1805"]
[Result "1-0"]
[Round "02"]
[TimeControl "180+1"]
[Date "2022.09.27"]
[WhiteClock "0:00:09"]
[BlackClock "0:00:07"]

1. e4 {[%clk 0:03:00]}  c5 {[%clk 0:02:58]} 2. Nf3 {[%clk 0:03:00]}  d6 {[%clk 0:02:58]} 3. d4 {[%clk 0:03:00]}  cxd4 {[%clk 0:02:58]} 4. Nxd4 {[%clk 0:03:01]}  Nf6 {[%clk 0:02:59]} 5. Nc3 {[%clk 0:03:01]}  a6 {[%clk 0:02:59]} 6. Bg5 {[%clk 0:03:02]}  Nbd7 {[%clk 0:02:59]} 7. Qe2 {[%clk 0:03:02]}  h6 {[%clk 0:02:55]} 8. Bh4 {[%clk 0:03:01]}  e6 {[%clk 0:02:50]} 9. f4 {[%clk 0:02:58]}  Be7 {[%clk 0:02:50]} 10. O-O-O {[%clk 0:02:57]}  O-O {[%clk 0:02:49]} 11. g4 {[%clk 0:02:54]}  b5 {[%clk 0:02:42]} 12. Nc6 {[%clk 0:02:52]}  Qe8 {[%clk 0:02:41]} 13. g5 {[%clk 0:02:52]}  Nh7 {[%clk 0:02:35]} 14. Nxe7+ {[%clk 0:02:46]}  Qxe7 {[%clk 0:02:35]} 15. Qh5 {[%clk 0:02:45]}  hxg5 {[%clk 0:02:33]} 16. fxg5 {[%clk 0:02:40]}  g6 {[%clk 0:02:33]} 17. Qg4 {[%clk 0:02:39]}  Ne5 {[%clk 0:02:32]} 18. Qe2 {[%clk 0:02:32]}  Bb7 {[%clk 0:02:31]} 19. Bg2 {[%clk 0:02:25]}  Rac8 {[%clk 0:02:30]} 20. Qe3 {[%clk 0:02:13]}  Nc4 {[%clk 0:02:26]} 21. Qh3 {[%clk 0:02:01]}  Rc7 {[%clk 0:02:16]} 22. Rhe1 {[%clk 0:01:44]}  Rfc8 {[%clk 0:02:15]} 23. e5 {[%clk 0:01:44]}  d5 {[%clk 0:02:10]} 24. Qg3 {[%clk 0:01:28]}  b4 {[%clk 0:02:06]} 25. Na4 {[%clk 0:01:20]}  Bc6 {[%clk 0:01:51]} 26. Qb3 {[%clk 0:01:13]}  Qd7 {[%clk 0:01:45]} 27. Nc5 {[%clk 0:01:10]}  Qe8 {[%clk 0:01:42]} 28. Nxa6 {[%clk 0:01:03]}  Ra7 {[%clk 0:01:40]} 29. Nxb4 {[%clk 0:01:00]}  Ba4 {[%clk 0:01:39]} 30. Qf3 {[%clk 0:00:48]}  Rb7 {[%clk 0:01:14]} 31. a3 {[%clk 0:00:47]}  Nxb2 {[%clk 0:01:12]} 32. Kxb2 {[%clk 0:00:44]}  Rxc2+ {[%clk 0:01:11]} 33. Ka1 {[%clk 0:00:39]}  Qa8 {[%clk 0:00:54]} 34. Rc1 {[%clk 0:00:33]}  Rxc1+ {[%clk 0:00:43]} 35. Rxc1 {[%clk 0:00:32]}  Rxb4 {[%clk 0:00:34]} 36. Be1 {[%clk 0:00:23]}  Rb3 {[%clk 0:00:25]} 37. Rc3 {[%clk 0:00:22]}  Rb8 {[%clk 0:00:18]} 38. Rc7 {[%clk 0:00:19]}  Be8 {[%clk 0:00:16]} 39. Qc3 {[%clk 0:00:12]}  Qa6 {[%clk 0:00:14]} 40. Bf3 {[%clk 0:00:10]}  Qb6 {[%clk 0:00:13]} 41. Qc2 {[%clk 0:00:08]}  Ra8 {[%clk 0:00:12]} 42. Rc3 {[%clk 0:00:05]}  Nxg5 {[%clk 0:00:09]} 43. Be2 {[%clk 0:00:05]}  Ne4 {[%clk 0:00:09]} 44. Rb3 {[%clk 0:00:05]}  Qg1 {[%clk 0:00:08]} 45. Qb1 {[%clk 0:00:03]}  Qa7 {[%clk 0:00:07]} 46. Bf3 {[%clk 0:00:03]}  Nc5 {[%clk 0:00:05]} 47. Rc3 {[%clk 0:00:04]}  Na4 {[%clk 0:00:05]} 48. Rb3 {[%clk 0:00:04]}  Nc5 {[%clk 0:00:04]} 49. Re3 {[%clk 0:00:05]}  Na4 {[%clk 0:00:04]} 50. Bf2 {[%clk 0:00:05]}  Rb8 {[%clk 0:00:04]} 51. Qc2 {[%clk 0:00:05]}  Qb6 {[%clk 0:00:04]} 52. Ka2 {[%clk 0:00:05]}  Qb2+ {[%clk 0:00:04]} 53. Qxb2 {[%clk 0:00:05]}  Rxb2+ {[%clk 0:00:05]} 54. Ka1 {[%clk 0:00:06]}  Rxf2 {[%clk 0:00:05]} 55. Bd1 {[%clk 0:00:07]}  Nc5 {[%clk 0:00:04]} 56. Rc3 {[%clk 0:00:07]}  Ne4 {[%clk 0:00:04]} 57. Rc8 {[%clk 0:00:07]}  Kf8 {[%clk 0:00:04]} 58. Ba4 {[%clk 0:00:07]}  Kg7 {[%clk 0:00:05]} 59. Bxe8 {[%clk 0:00:06]}  Nc3 {[%clk 0:00:05]} 60. Rxc3 {[%clk 0:00:05]}  Re2 {[%clk 0:00:05]} 61. Rc7 {[%clk 0:00:06]}  Rxe5 {[%clk 0:00:05]} 62. Rxf7+ {[%clk 0:00:06]}  Kh6 {[%clk 0:00:06]} 63. Kb2 {[%clk 0:00:06]}  Re2+ {[%clk 0:00:06]} 64. Kb3 {[%clk 0:00:07]}  Rxh2 {[%clk 0:00:06]} 65. a4 {[%clk 0:00:07]}  Rh3+ {[%clk 0:00:06]} 66. Kb4 {[%clk 0:00:07]}  Rh4+ {[%clk 0:00:06]} 67. Kc5 {[%clk 0:00:08]}  Rh1 {[%clk 0:00:07]} 68. Rf6 {[%clk 0:00:08]}  Rg1 {[%clk 0:00:06]} 69. Rxe6 {[%clk 0:00:08]}  d4 {[%clk 0:00:06]} 70. Kxd4 {[%clk 0:00:07]}  Ra1 {[%clk 0:00:07]} 71. Rxg6+ {[%clk 0:00:07]}  Kh5 {[%clk 0:00:07]} 72. Rg1+ {[%clk 0:00:07]}  Kh4 {[%clk 0:00:08]} 73. Rxa1 {[%clk 0:00:08]}  Kh3 {[%clk 0:00:07]} 74. a5 {[%clk 0:00:09]} 1-0


[Site "https://www.chess.com"]

[Event "Titled Tuesday Blitz September 27 Early 2022"]
[White "Meshkovs, Nikita"]
[Black "Jimenez Almeida, Luis David"]
[WhiteFideId "11602740"]
[BlackFideId "22242244"]
[WhiteElo "2506"]
[BlackElo "2077"]
[Result "1-0"]
[Round "02"]
[TimeControl "180+1"]
[Date "2022.09.27"]
[WhiteClock "0:00:29"]
[BlackClock "0:00:09"]

1. Nf3 {[%clk 0:02:34]}  Nf6 {[%clk 0:02:55]} 2. g3 {[%clk 0:02:34]}  b5 {[%clk 0:02:54]} 3. Bg2 {[%clk 0:02:34]}  Bb7 {[%clk 0:02:55]} 4. O-O {[%clk 0:02:35]}  e6 {[%clk 0:02:55]} 5. d4 {[%clk 0:02:31]}  d5 {[%clk 0:02:51]} 6. a4 {[%clk 0:02:28]}  b4 {[%clk 0:02:51]} 7. c4 {[%clk 0:02:28]}  dxc4 {[%clk 0:02:45]} 8. Nbd2 {[%clk 0:02:20]}  Be7 {[%clk 0:02:39]} 9. Nxc4 {[%clk 0:02:19]}  O-O {[%clk 0:02:38]} 10. Bf4 {[%clk 0:02:11]}  c5 {[%clk 0:02:23]} 11. dxc5 {[%clk 0:02:00]}  Nbd7 {[%clk 0:02:23]} 12. Nfe5 {[%clk 0:01:38]}  Bxg2 {[%clk 0:02:21]} 13. Kxg2 {[%clk 0:01:39]}  Bxc5 {[%clk 0:02:05]} 14. Rc1 {[%clk 0:01:36]}  Nxe5 {[%clk 0:01:52]} 15. Nxe5 {[%clk 0:01:36]}  Qb6 {[%clk 0:01:46]} 16. Qd3 {[%clk 0:01:26]}  a6 {[%clk 0:01:21]} 17. Qf3 {[%clk 0:01:14]}  Rac8 {[%clk 0:01:03]} 18. Bg5 {[%clk 0:01:07]}  Be7 {[%clk 0:00:28]} 19. Bxf6 {[%clk 0:00:59]}  Bxf6 {[%clk 0:00:22]} 20. Nd7 {[%clk 0:00:59]}  Qd6 {[%clk 0:00:17]} 21. Nxf8 {[%clk 0:00:57]}  Rxf8 {[%clk 0:00:18]} 22. Rfd1 {[%clk 0:00:56]}  Qe5 {[%clk 0:00:18]} 23. Rc2 {[%clk 0:00:52]}  h5 {[%clk 0:00:18]} 24. h4 {[%clk 0:00:51]}  g6 {[%clk 0:00:19]} 25. Rd7 {[%clk 0:00:38]}  Kg7 {[%clk 0:00:18]} 26. b3 {[%clk 0:00:37]}  a5 {[%clk 0:00:16]} 27. Rcc7 {[%clk 0:00:36]}  Qb2 {[%clk 0:00:12]} 28. Ra7 {[%clk 0:00:35]}  Qe5 {[%clk 0:00:10]} 29. e3 {[%clk 0:00:31]}  g5 {[%clk 0:00:10]} 30. Qxh5 {[%clk 0:00:28]}  Qe4+ {[%clk 0:00:09]} 31. Qf3 {[%clk 0:00:27]}  Qxf3+ {[%clk 0:00:09]} 32. Kxf3 {[%clk 0:00:28]}  gxh4 {[%clk 0:00:09]} 33. gxh4 {[%clk 0:00:29]}  Bxh4 {[%clk 0:00:09]} 34. Rxa5 {[%clk 0:00:29]} 1-0


[Site "https://www.chess.com"]

[Event "Titled Tuesday Blitz September 27 Early 2022"]
[White "Mihailidis, Anastasios"]
[Black "Rostomyan, Mikayel"]
[WhiteFideId "4205588"]
[BlackFideId "13313754"]
[WhiteElo "2312"]
[BlackElo "1426"]
[Result "0-1"]
[Round "02"]
[TimeControl "180+1"]
[Date "2022.09.27"]
[WhiteClock "0:00:14"]
[BlackClock "0:00:19"]

1. e4 {[%clk 0:03:00]}  c5 {[%clk 0:02:59]} 2. Nf3 {[%clk 0:03:00]}  Nc6 {[%clk 0:02:58]} 3. c4 {[%clk 0:03:00]}  g6 {[%clk 0:02:56]} 4. d4 {[%clk 0:03:00]}  cxd4 {[%clk 0:02:52]} 5. Nxd4 {[%clk 0:03:01]}  Nf6 {[%clk 0:02:53]} 6. Nc3 {[%clk 0:03:00]}  Nxd4 {[%clk 0:02:47]} 7. Qxd4 {[%clk 0:02:59]}  d6 {[%clk 0:02:48]} 8. Be3 {[%clk 0:03:00]}  Bg7 {[%clk 0:02:46]} 9. f3 {[%clk 0:02:59]}  O-O {[%clk 0:02:46]} 10. Qd2 {[%clk 0:02:56]}  Be6 {[%clk 0:02:44]} 11. Be2 {[%clk 0:02:55]}  Qa5 {[%clk 0:02:44]} 12. Nd5 {[%clk 0:02:32]}  Qxd2+ {[%clk 0:02:40]} 13. Kxd2 {[%clk 0:02:33]}  Bxd5 {[%clk 0:02:39]} 14. cxd5 {[%clk 0:02:33]}  Nd7 {[%clk 0:02:39]} 15. Rab1 {[%clk 0:02:25]}  a6 {[%clk 0:02:31]} 16. b3 {[%clk 0:02:24]}  Rac8 {[%clk 0:02:30]} 17. Rhc1 {[%clk 0:02:24]}  f5 {[%clk 0:02:11]} 18. Rxc8 {[%clk 0:02:10]}  Rxc8 {[%clk 0:02:09]} 19. Rc1 {[%clk 0:02:09]}  Rxc1 {[%clk 0:02:05]} 20. Kxc1 {[%clk 0:02:10]}  fxe4 {[%clk 0:01:54]} 21. fxe4 {[%clk 0:02:11]}  Be5 {[%clk 0:01:54]} 22. g3 {[%clk 0:02:06]}  Nf6 {[%clk 0:01:52]} 23. Bf3 {[%clk 0:02:06]}  Kf7 {[%clk 0:01:31]} 24. Kc2 {[%clk 0:02:05]}  e6 {[%clk 0:01:25]} 25. dxe6+ {[%clk 0:01:54]}  Kxe6 {[%clk 0:01:26]} 26. Kd3 {[%clk 0:01:54]}  Kd7 {[%clk 0:01:19]} 27. Bd4 {[%clk 0:01:53]}  Kc6 {[%clk 0:01:08]} 28. Ke3 {[%clk 0:01:41]}  Nd7 {[%clk 0:00:47]} 29. Be2 {[%clk 0:01:26]}  b5 {[%clk 0:00:40]} 30. Bd3 {[%clk 0:00:57]}  Nf8 {[%clk 0:00:26]} 31. a4 {[%clk 0:00:31]}  Ne6 {[%clk 0:00:20]} 32. axb5+ {[%clk 0:00:29]}  axb5 {[%clk 0:00:18]} 33. Bxe5 {[%clk 0:00:29]}  dxe5 {[%clk 0:00:19]} 34. Be2 {[%clk 0:00:28]}  Kc5 {[%clk 0:00:18]} 35. Kd3 {[%clk 0:00:19]}  Nd4 {[%clk 0:00:18]} 36. Bd1 {[%clk 0:00:17]}  Kb4 {[%clk 0:00:19]} 37. Bg4 {[%clk 0:00:15]}  Nxb3 {[%clk 0:00:18]} 38. Be6 {[%clk 0:00:14]}  Nc5+ {[%clk 0:00:19]} 0-1


[Site "https://www.chess.com"]

[Event "Titled Tuesday Blitz September 27 Early 2022"]
[White "Mikhailovsky, Vladimir"]
[Black "Gallegos Diaz, Carlos Alberto"]
[WhiteFideId "34105414"]
[BlackFideId "3900886"]
[WhiteElo "2297"]
[BlackElo "2362"]
[Result "1-0"]
[Round "02"]
[TimeControl "180+1"]
[Date "2022.09.27"]
[WhiteClock "0:00:08"]
[BlackClock "0:00:02"]

1. e4 {[%clk 0:03:00]}  d6 {[%clk 0:02:58]} 2. d4 {[%clk 0:03:00]}  Nf6 {[%clk 0:02:59]} 3. Nc3 {[%clk 0:03:00]}  c6 {[%clk 0:03:00]} 4. g3 {[%clk 0:02:57]}  e5 {[%clk 0:02:58]} 5. Nge2 {[%clk 0:02:56]}  Be7 {[%clk 0:02:57]} 6. Bg2 {[%clk 0:02:56]}  O-O {[%clk 0:02:57]} 7. O-O {[%clk 0:02:57]}  b5 {[%clk 0:02:57]} 8. a3 {[%clk 0:02:52]}  a6 {[%clk 0:02:56]} 9. h3 {[%clk 0:02:43]}  Bb7 {[%clk 0:02:51]} 10. g4 {[%clk 0:02:43]}  Qc7 {[%clk 0:02:26]} 11. f4 {[%clk 0:02:34]}  c5 {[%clk 0:01:42]} 12. fxe5 {[%clk 0:02:27]}  dxe5 {[%clk 0:01:41]} 13. d5 {[%clk 0:02:28]}  Ne8 {[%clk 0:01:35]} 14. Ng3 {[%clk 0:02:14]}  Nd6 {[%clk 0:01:29]} 15. Qf3 {[%clk 0:02:08]}  Nd7 {[%clk 0:01:18]} 16. Nce2 {[%clk 0:01:25]}  g6 {[%clk 0:00:57]} 17. Bh6 {[%clk 0:01:24]}  Rfe8 {[%clk 0:00:53]} 18. g5 {[%clk 0:01:21]}  Bf8 {[%clk 0:00:34]} 19. Bxf8 {[%clk 0:01:03]}  Rxf8 {[%clk 0:00:30]} 20. Qg4 {[%clk 0:01:03]}  Bc8 {[%clk 0:00:25]} 21. Qh4 {[%clk 0:01:03]}  Ne8 {[%clk 0:00:20]} 22. Rf2 {[%clk 0:01:00]}  Ng7 {[%clk 0:00:19]} 23. Raf1 {[%clk 0:01:01]}  Nb6 {[%clk 0:00:19]} 24. Qh6 {[%clk 0:00:52]}  Ra7 {[%clk 0:00:17]} 25. Nc3 {[%clk 0:00:17]}  Nc4 {[%clk 0:00:16]} 26. Nd1 {[%clk 0:00:18]}  Qd6 {[%clk 0:00:13]} 27. Rf6 {[%clk 0:00:17]}  Qe7 {[%clk 0:00:13]} 28. b3 {[%clk 0:00:16]}  Nxa3 {[%clk 0:00:09]} 29. Ne3 {[%clk 0:00:16]}  c4 {[%clk 0:00:08]} 30. bxc4 {[%clk 0:00:15]}  Nxc4 {[%clk 0:00:07]} 31. Nef5 {[%clk 0:00:11]}  gxf5 {[%clk 0:00:06]} 32. exf5 {[%clk 0:00:11]}  Ne3 {[%clk 0:00:04]} 33. Rf3 {[%clk 0:00:11]}  Nxg2 {[%clk 0:00:03]} 34. Kxg2 {[%clk 0:00:12]}  Bb7 {[%clk 0:00:02]} 35. Rd6 {[%clk 0:00:08]} 1-0


[Site "https://www.chess.com"]

[Event "Titled Tuesday Blitz September 27 Early 2022"]
[White "Mladek, Richard"]
[Black "De Souza, Cristiano Gomes"]
[WhiteFideId "386588"]
[BlackFideId "2151758"]
[WhiteElo "2263"]
[BlackElo "2068"]
[Result "1-0"]
[Round "02"]
[TimeControl "180+1"]
[Date "2022.09.27"]
[WhiteClock "0:00:25"]
[BlackClock "0:00:19"]

1. e4 {[%clk 0:02:50]}  c5 {[%clk 0:02:58]} 2. Nf3 {[%clk 0:02:50]}  d6 {[%clk 0:02:58]} 3. d4 {[%clk 0:02:50]}  cxd4 {[%clk 0:02:57]} 4. Qxd4 {[%clk 0:02:51]}  Nf6 {[%clk 0:02:56]} 5. Bb5+ {[%clk 0:02:43]}  Bd7 {[%clk 0:02:55]} 6. c4 {[%clk 0:02:42]}  Nc6 {[%clk 0:02:55]} 7. Qd3 {[%clk 0:02:42]}  a6 {[%clk 0:02:53]} 8. Bxc6 {[%clk 0:02:42]}  Bxc6 {[%clk 0:02:54]} 9. Nc3 {[%clk 0:02:42]}  e6 {[%clk 0:02:53]} 10. O-O {[%clk 0:02:42]}  Be7 {[%clk 0:02:53]} 11. b3 {[%clk 0:02:35]}  O-O {[%clk 0:02:52]} 12. Bb2 {[%clk 0:02:35]}  Nd7 {[%clk 0:02:52]} 13. Rad1 {[%clk 0:02:33]}  Nc5 {[%clk 0:02:51]} 14. Qe3 {[%clk 0:02:32]}  Bf6 {[%clk 0:02:40]} 15. e5 {[%clk 0:01:58]}  Bxf3 {[%clk 0:02:39]} 16. Rxd6 {[%clk 0:01:59]}  Qc7 {[%clk 0:02:30]} 17. exf6 {[%clk 0:01:53]}  Bh5 {[%clk 0:02:04]} 18. fxg7 {[%clk 0:01:21]}  Qxd6 {[%clk 0:02:02]} 19. gxf8=Q+ {[%clk 0:01:18]}  Qxf8 {[%clk 0:01:56]} 20. b4 {[%clk 0:01:16]}  Nd7 {[%clk 0:01:50]} 21. Qd4 {[%clk 0:01:16]}  Rd8 {[%clk 0:01:39]} 22. Ne4 {[%clk 0:01:16]}  e5 {[%clk 0:01:36]} 23. Qd5 {[%clk 0:01:15]}  Bg6 {[%clk 0:01:34]} 24. c5 {[%clk 0:01:02]}  Qe7 {[%clk 0:01:29]} 25. Nd6 {[%clk 0:01:01]}  Nf8 {[%clk 0:01:16]} 26. Qxe5 {[%clk 0:00:57]}  Qxe5 {[%clk 0:01:15]} 27. Bxe5 {[%clk 0:00:58]}  Ne6 {[%clk 0:00:56]} 28. Nxb7 {[%clk 0:00:55]}  Rd2 {[%clk 0:00:55]} 29. a3 {[%clk 0:00:48]}  Be4 {[%clk 0:00:52]} 30. Nd6 {[%clk 0:00:46]}  Bc6 {[%clk 0:00:52]} 31. h4 {[%clk 0:00:40]}  h5 {[%clk 0:00:47]} 32. Ra1 {[%clk 0:00:39]}  f6 {[%clk 0:00:35]} 33. Bg3 {[%clk 0:00:39]}  Nd4 {[%clk 0:00:32]} 34. a4 {[%clk 0:00:24]}  Ne2+ {[%clk 0:00:32]} 35. Kh2 {[%clk 0:00:24]}  Nxg3 {[%clk 0:00:25]} 36. Kxg3 {[%clk 0:00:24]}  Rd3+ {[%clk 0:00:25]} 37. f3 {[%clk 0:00:25]}  Rb3 {[%clk 0:00:22]} 38. b5 {[%clk 0:00:23]}  axb5 {[%clk 0:00:22]} 39. a5 {[%clk 0:00:22]}  b4 {[%clk 0:00:20]} 40. a6 {[%clk 0:00:22]}  Ra3 {[%clk 0:00:20]} 41. Rb1 {[%clk 0:00:17]}  Rxa6 {[%clk 0:00:19]} 42. Rxb4 {[%clk 0:00:18]}  Kg7 {[%clk 0:00:19]} 43. Rb6 {[%clk 0:00:17]}  Rxb6 {[%clk 0:00:19]} 44. cxb6 {[%clk 0:00:18]}  Kf8 {[%clk 0:00:19]} 45. b7 {[%clk 0:00:18]}  Bxb7 {[%clk 0:00:17]} 46. Nxb7 {[%clk 0:00:19]}  Ke7 {[%clk 0:00:17]} 47. Kf4 {[%clk 0:00:20]}  Ke6 {[%clk 0:00:18]} 48. Nc5+ {[%clk 0:00:20]}  Kd5 {[%clk 0:00:17]} 49. Kf5 {[%clk 0:00:20]}  Kxc5 {[%clk 0:00:17]} 50. Kxf6 {[%clk 0:00:21]}  Kd4 {[%clk 0:00:18]} 51. Kg5 {[%clk 0:00:22]}  Ke3 {[%clk 0:00:18]} 52. Kxh5 {[%clk 0:00:23]}  Kf2 {[%clk 0:00:18]} 53. g4 {[%clk 0:00:24]}  Kg3 {[%clk 0:00:18]} 54. g5 {[%clk 0:00:25]}  Kxf3 {[%clk 0:00:19]} 55. g6 {[%clk 0:00:25]} 1-0


[Site "https://www.chess.com"]

[Event "Titled Tuesday Blitz September 27 Early 2022"]
[White "Moaataz, Ayah"]
[Black "Goltsev, Dmitry"]
[WhiteFideId "10615873"]
[BlackFideId "24176710"]
[WhiteElo "1993"]
[BlackElo "2257"]
[Result "0-1"]
[Round "02"]
[TimeControl "180+1"]
[Date "2022.09.27"]
[WhiteClock "0:01:29"]
[BlackClock "0:02:07"]

1. c4 {[%clk 0:03:00]}  Nf6 {[%clk 0:03:00]} 2. g3 {[%clk 0:03:01]}  c6 {[%clk 0:02:59]} 3. Bg2 {[%clk 0:03:01]}  e6 {[%clk 0:03:00]} 4. Nf3 {[%clk 0:03:01]}  d5 {[%clk 0:03:01]} 5. b3 {[%clk 0:03:00]}  Nbd7 {[%clk 0:03:02]} 6. Bb2 {[%clk 0:03:00]}  Bd6 {[%clk 0:03:02]} 7. d3 {[%clk 0:03:01]}  Qe7 {[%clk 0:03:02]} 8. O-O {[%clk 0:03:01]}  O-O {[%clk 0:03:03]} 9. Qc1 {[%clk 0:03:01]}  e5 {[%clk 0:03:03]} 10. cxd5 {[%clk 0:02:59]}  cxd5 {[%clk 0:03:04]} 11. Nbd2 {[%clk 0:02:58]}  Nb6 {[%clk 0:03:02]} 12. e4 {[%clk 0:02:58]}  Bd7 {[%clk 0:02:59]} 13. exd5 {[%clk 0:02:57]}  Rac8 {[%clk 0:02:59]} 14. Nc4 {[%clk 0:02:57]}  Nbxd5 {[%clk 0:02:59]} 15. Qd1 {[%clk 0:02:54]}  Bb4 {[%clk 0:02:53]} 16. Nfxe5 {[%clk 0:02:52]}  Bf5 {[%clk 0:02:51]} 17. Rc1 {[%clk 0:02:51]}  b5 {[%clk 0:02:46]} 18. Nd2 {[%clk 0:02:42]}  Bc3 {[%clk 0:02:40]} 19. Bxc3 {[%clk 0:02:31]}  Nxc3 {[%clk 0:02:41]} 20. Qe1 {[%clk 0:02:28]}  Rfe8 {[%clk 0:02:39]} 21. Nc6 {[%clk 0:02:17]}  Qc5 {[%clk 0:02:36]} 22. b4 {[%clk 0:02:00]}  Rxe1 {[%clk 0:02:21]} 23. bxc5 {[%clk 0:01:59]}  Rxc1 {[%clk 0:02:21]} 24. Rxc1 {[%clk 0:01:57]}  Ne2+ {[%clk 0:02:22]} 25. Kf1 {[%clk 0:01:51]}  Nxc1 {[%clk 0:02:20]} 26. Ne7+ {[%clk 0:01:50]}  Kf8 {[%clk 0:02:21]} 27. Nxc8 {[%clk 0:01:50]}  Bxc8 {[%clk 0:02:21]} 28. Bc6 {[%clk 0:01:47]}  Nxd3 {[%clk 0:02:20]} 29. Bxb5 {[%clk 0:01:45]}  Nxc5 {[%clk 0:02:20]} 30. Nc4 {[%clk 0:01:46]}  Ba6 {[%clk 0:02:16]} 31. Bxa6 {[%clk 0:01:43]}  Nxa6 {[%clk 0:02:17]} 32. Ke2 {[%clk 0:01:43]}  Ne4 {[%clk 0:02:15]} 33. a3 {[%clk 0:01:39]}  Nac5 {[%clk 0:02:13]} 34. f3 {[%clk 0:01:39]}  Nc3+ {[%clk 0:02:12]} 35. Ke3 {[%clk 0:01:38]}  Nb5 {[%clk 0:02:12]} 36. Kf4 {[%clk 0:01:36]}  Ke7 {[%clk 0:02:10]} 37. Ke5 {[%clk 0:01:36]}  Nd7+ {[%clk 0:02:08]} 38. Kd5 {[%clk 0:01:35]}  Nb6+ {[%clk 0:02:08]} 39. Kc6 {[%clk 0:01:35]}  Nxc4 {[%clk 0:02:08]} 40. Kxb5 {[%clk 0:01:26]}  Nxa3+ {[%clk 0:02:05]} 41. Ka6 {[%clk 0:01:27]}  Nc4 {[%clk 0:02:06]} 42. Kxa7 {[%clk 0:01:28]}  Nd2 {[%clk 0:02:06]} 43. Kb6 {[%clk 0:01:28]}  Nxf3 {[%clk 0:02:07]} 44. Kc5 {[%clk 0:01:29]}  Nxh2 {[%clk 0:02:07]} 0-1


[Site "https://www.chess.com"]

[Event "Titled Tuesday Blitz September 27 Early 2022"]
[White "Moksh Amit Doshi"]
[Black "Caruana, Fabiano"]
[WhiteFideId "25064967"]
[BlackFideId "2020009"]
[WhiteElo "2245"]
[BlackElo "2847"]
[Result "0-1"]
[Round "02"]
[TimeControl "180+1"]
[Date "2022.09.27"]
[WhiteClock "0:00:14"]
[BlackClock "0:00:16"]

1. d4 {[%clk 0:03:00]}  d5 {[%clk 0:02:59]} 2. c4 {[%clk 0:02:58]}  e6 {[%clk 0:02:59]} 3. Nf3 {[%clk 0:02:57]}  Nf6 {[%clk 0:02:58]} 4. Nc3 {[%clk 0:02:49]}  a6 {[%clk 0:02:58]} 5. cxd5 {[%clk 0:02:46]}  exd5 {[%clk 0:02:56]} 6. Bg5 {[%clk 0:02:47]}  Be6 {[%clk 0:02:54]} 7. e3 {[%clk 0:02:47]}  Nbd7 {[%clk 0:02:53]} 8. Bd3 {[%clk 0:02:43]}  h6 {[%clk 0:02:53]} 9. Bf4 {[%clk 0:02:35]}  Be7 {[%clk 0:02:46]} 10. h3 {[%clk 0:02:32]}  c6 {[%clk 0:02:43]} 11. O-O {[%clk 0:02:32]}  O-O {[%clk 0:02:42]} 12. Rc1 {[%clk 0:02:21]}  a5 {[%clk 0:02:38]} 13. Ne5 {[%clk 0:02:13]}  Nxe5 {[%clk 0:02:33]} 14. Bxe5 {[%clk 0:02:14]}  Nd7 {[%clk 0:02:27]} 15. Bh2 {[%clk 0:02:10]}  Nb6 {[%clk 0:02:21]} 16. Nb5 {[%clk 0:01:47]}  Qd7 {[%clk 0:01:50]} 17. Nc7 {[%clk 0:01:41]}  Rac8 {[%clk 0:01:43]} 18. Nxe6 {[%clk 0:01:32]}  Qxe6 {[%clk 0:01:44]} 19. Qb3 {[%clk 0:01:32]}  Bd8 {[%clk 0:01:42]} 20. Qc2 {[%clk 0:01:27]}  g6 {[%clk 0:01:27]} 21. Rfe1 {[%clk 0:01:21]}  Qd7 {[%clk 0:01:06]} 22. Be5 {[%clk 0:01:14]}  f5 {[%clk 0:00:58]} 23. f3 {[%clk 0:00:53]}  Bc7 {[%clk 0:00:57]} 24. e4 {[%clk 0:00:31]}  Bxe5 {[%clk 0:00:48]} 25. dxe5 {[%clk 0:00:31]}  dxe4 {[%clk 0:00:29]} 26. fxe4 {[%clk 0:00:32]}  Qe6 {[%clk 0:00:23]} 27. exf5 {[%clk 0:00:31]}  gxf5 {[%clk 0:00:24]} 28. Re2 {[%clk 0:00:23]}  Kh8 {[%clk 0:00:23]} 29. Rf1 {[%clk 0:00:21]}  f4 {[%clk 0:00:23]} 30. Qd2 {[%clk 0:00:20]}  Rcd8 {[%clk 0:00:21]} 31. Qc3 {[%clk 0:00:18]}  Nd5 {[%clk 0:00:21]} 32. Qb3 {[%clk 0:00:17]}  b5 {[%clk 0:00:21]} 33. Be4 {[%clk 0:00:17]}  a4 {[%clk 0:00:21]} 34. Bxd5 {[%clk 0:00:17]}  Rxd5 {[%clk 0:00:22]} 35. Qc3 {[%clk 0:00:17]}  c5 {[%clk 0:00:22]} 36. Re4 {[%clk 0:00:17]}  c4 {[%clk 0:00:18]} 37. Rexf4 {[%clk 0:00:17]}  Rxf4 {[%clk 0:00:19]} 38. Rxf4 {[%clk 0:00:17]}  Qxe5 {[%clk 0:00:19]} 39. Qxe5+ {[%clk 0:00:17]}  Rxe5 {[%clk 0:00:20]} 40. Rf8+ {[%clk 0:00:15]}  Kg7 {[%clk 0:00:20]} 41. Rb8 {[%clk 0:00:16]}  Kf6 {[%clk 0:00:19]} 42. Rb6+ {[%clk 0:00:16]}  Kf5 {[%clk 0:00:18]} 43. a3 {[%clk 0:00:15]}  Ke4 {[%clk 0:00:18]} 44. Kh1 {[%clk 0:00:15]}  Kd3 {[%clk 0:00:18]} 45. Rxh6 {[%clk 0:00:14]}  Kc2 {[%clk 0:00:19]} 46. g4 {[%clk 0:00:14]}  Kxb2 {[%clk 0:00:19]} 47. h4 {[%clk 0:00:14]}  c3 {[%clk 0:00:19]} 48. g5 {[%clk 0:00:15]}  c2 {[%clk 0:00:19]} 49. Rc6 {[%clk 0:00:15]}  Re4 {[%clk 0:00:17]} 50. g6 {[%clk 0:00:14]}  Rxh4+ {[%clk 0:00:16]} 0-1


[Site "https://www.chess.com"]